[Event "*** Titled Tuesday Blitz"]
[Site "Chess.com"]
[Date "2020.11.10"]
[Round "1"]
[White "Meri-Arabidze"]
[Black "The_Machine04"]
[Result "1-0"]
[WhiteElo "2609"]
[BlackElo "2292"]
[TimeControl "180+1"]
[EndTime "10:08:11 PST"]
[Termination "Meri-Arabidze won by checkmate"]

1. d4 {[%clk 0:02:59.7]} 1... d6 {[%clk 0:02:58.6]} 2. Nf3 {[%clk 0:02:58.3]}
2... Nf6 {[%clk 0:02:54.7]} 3. c4 {[%clk 0:02:56.4]} 3... g6 {[%clk 0:02:53.5]}
4. Nc3 {[%clk 0:02:57.3]} 4... Bf5 {[%clk 0:02:51.5]} 5. Nh4 {[%clk 0:02:46.8]}
5... Bd7 {[%clk 0:02:45]} 6. e4 {[%clk 0:02:46.3]} 6... Bg7 {[%clk 0:02:40.7]}
7. Be2 {[%clk 0:02:41.5]} 7... O-O {[%clk 0:02:34.2]} 8. O-O {[%clk 0:02:39.8]}
8... e5 {[%clk 0:02:20.3]} 9. Nf3 {[%clk 0:02:39.2]} 9... exd4 {[%clk
0:02:15.9]} 10. Nxd4 {[%clk 0:02:40.1]} 10... Nc6 {[%clk 0:02:15]} 11. Be3
{[%clk 0:02:39.1]} 11... Re8 {[%clk 0:02:13.7]} 12. f3 {[%clk 0:02:39.3]} 12...
Nh5 {[%clk 0:02:06.3]} 13. Nxc6 {[%clk 0:02:20.9]} 13... Bxc6 {[%clk 0:02:07.2]}
14. Qd2 {[%clk 0:02:19.4]} 14... Qe7 {[%clk 0:01:53.9]} 15. Rac1 {[%clk
0:02:13.6]} 15... f5 {[%clk 0:01:53.2]} 16. Bg5 {[%clk 0:01:52.4]} 16... Bf6
{[%clk 0:01:27.6]} 17. Bxf6 {[%clk 0:01:49.7]} 17... Qxf6 {[%clk 0:01:28.5]} 18.
exf5 {[%clk 0:01:47]} 18... Qxf5 {[%clk 0:01:28.7]} 19. Bd3 {[%clk 0:01:39.1]}
19... Qc5+ {[%clk 0:01:12.6]} 20. Kh1 {[%clk 0:01:39.1]} 20... Qe3 {[%clk
0:01:11]} 21. Qxe3 {[%clk 0:01:33]} 21... Rxe3 {[%clk 0:01:11.9]} 22. Be4 {[%clk
0:01:33.1]} 22... Nf6 {[%clk 0:00:56.7]} 23. Bxc6 {[%clk 0:01:22.5]} 23... bxc6
{[%clk 0:00:55.6]} 24. c5 {[%clk 0:01:23.4]} 24... d5 {[%clk 0:00:52.2]} 25.
Rfe1 {[%clk 0:01:14.3]} 25... Rae8 {[%clk 0:00:45.5]} 26. Rxe3 {[%clk 0:01:14]}
26... Rxe3 {[%clk 0:00:46.4]} 27. Kg1 {[%clk 0:01:13.3]} 27... Nd7 {[%clk
0:00:39.6]} 28. Kf2 {[%clk 0:01:06.7]} 28... Rd3 {[%clk 0:00:38.4]} 29. Ke2
{[%clk 0:01:02.8]} 29... Rd4 {[%clk 0:00:36.2]} 30. Nd1 {[%clk 0:00:59.4]} 30...
Rb4 {[%clk 0:00:32.8]} 31. b3 {[%clk 0:00:26.9]} 31... Rb5 {[%clk 0:00:29.2]}
32. Kd3 {[%clk 0:00:22.6]} 32... Rxc5 {[%clk 0:00:24.6]} 33. Rxc5 {[%clk
0:00:21.9]} 33... Nxc5+ {[%clk 0:00:25.5]} 34. Kd4 {[%clk 0:00:22.5]} 34... Nd7
{[%clk 0:00:20.5]} 35. Nb2 {[%clk 0:00:17.6]} 35... Kf7 {[%clk 0:00:19.9]} 36.
Nd3 {[%clk 0:00:17.5]} 36... Ke6 {[%clk 0:00:19.5]} 37. b4 {[%clk 0:00:14]}
37... Kd6 {[%clk 0:00:18.1]} 38. g4 {[%clk 0:00:10.6]} 38... a5 {[%clk
0:00:16.4]} 39. bxa5 {[%clk 0:00:09.6]} 39... c5+ {[%clk 0:00:16.4]} 40. Kc3
{[%clk 0:00:10.3]} 40... c4 {[%clk 0:00:15.8]} 41. Nf4 {[%clk 0:00:08.9]} 41...
Kc5 {[%clk 0:00:14.4]} 42. a4 {[%clk 0:00:09.3]} 42... d4+ {[%clk 0:00:14.2]}
43. Kd2 {[%clk 0:00:08.3]} 43... Kb4 {[%clk 0:00:14.3]} 44. a6 {[%clk
0:00:07.6]} 44... Kxa4 {[%clk 0:00:13.7]} 45. Nd5 {[%clk 0:00:06.9]} 45... c6
{[%clk 0:00:10.4]} 46. a7 {[%clk 0:00:06.8]} 46... cxd5 {[%clk 0:00:10.6]} 47.
a8=Q+ {[%clk 0:00:07]} 47... Kb5 {[%clk 0:00:11]} 48. Qb7+ {[%clk 0:00:07.1]}
48... Nb6 {[%clk 0:00:10.9]} 49. Qxh7 {[%clk 0:00:07.4]} 49... Kb4 {[%clk
0:00:08.1]} 50. Qe7+ {[%clk 0:00:07.4]} 50... Kb5 {[%clk 0:00:07]} 51. Qe8+
{[%clk 0:00:07.8]} 51... Kc5 {[%clk 0:00:07.1]} 52. Qxg6 {[%clk 0:00:08.3]}
52... d3 {[%clk 0:00:05.9]} 53. Qe8 {[%clk 0:00:07.4]} 53... Kd4 {[%clk
0:00:05.6]} 54. Qe3# {[%clk 0:00:07.4]} 1-0

[Event "*** Titled Tuesday Blitz"]
[Site "Chess.com"]
[Date "2020.11.10"]
[Round "1"]
[White "Sergey85Rodchenkov"]
[Black "Jospem"]
[Result "0-1"]
[WhiteElo "2453"]
[BlackElo "2909"]
[TimeControl "180+1"]
[EndTime "10:08:12 PST"]
[Termination "Jospem won by resignation"]

1. e4 {[%clk 0:02:58.5]} 1... c5 {[%clk 0:02:57.4]} 2. Nf3 {[%clk 0:02:58.4]}
2... d6 {[%clk 0:02:56.7]} 3. d4 {[%clk 0:02:58.4]} 3... cxd4 {[%clk 0:02:57.6]}
4. Nxd4 {[%clk 0:02:58.8]} 4... a6 {[%clk 0:02:56.4]} 5. Nc3 {[%clk 0:02:58.6]}
5... e6 {[%clk 0:02:56.6]} 6. Bc4 {[%clk 0:02:58]} 6... Nf6 {[%clk 0:02:55.1]}
7. Bb3 {[%clk 0:02:57.7]} 7... b5 {[%clk 0:02:55.2]} 8. O-O {[%clk 0:02:57.3]}
8... Be7 {[%clk 0:02:55.2]} 9. f4 {[%clk 0:02:57.3]} 9... O-O {[%clk 0:02:51]}
10. e5 {[%clk 0:02:56.9]} 10... dxe5 {[%clk 0:02:42.6]} 11. fxe5 {[%clk
0:02:56.3]} 11... Nfd7 {[%clk 0:02:30.2]} 12. Be3 {[%clk 0:02:55.3]} 12... Nc5
{[%clk 0:02:23.5]} 13. Qh5 {[%clk 0:02:18.4]} 13... Qc7 {[%clk 0:01:54.5]} 14.
Rf3 {[%clk 0:01:56.7]} 14... g6 {[%clk 0:01:37.1]} 15. Qh6 {[%clk 0:01:55.3]}
15... Qxe5 {[%clk 0:01:33.8]} 16. Raf1 {[%clk 0:01:46.2]} 16... Qg7 {[%clk
0:01:27.3]} 17. Qxg7+ {[%clk 0:01:08.1]} 17... Kxg7 {[%clk 0:01:28.2]} 18. Rg3
{[%clk 0:00:40]} 18... Bb7 {[%clk 0:01:00.6]} 19. Nf3 {[%clk 0:00:37.4]} 19...
Nbd7 {[%clk 0:00:55]} 20. Bd4+ {[%clk 0:00:32.2]} 20... Bf6 {[%clk 0:00:53.5]}
21. Bxf6+ {[%clk 0:00:30.7]} 21... Nxf6 {[%clk 0:00:54.4]} 22. Ne5 {[%clk
0:00:30.8]} 22... Nfd7 {[%clk 0:00:47.8]} 23. Nxd7 {[%clk 0:00:29.3]} 23... Nxd7
{[%clk 0:00:48.7]} 24. Rd3 {[%clk 0:00:29.2]} 24... Nc5 {[%clk 0:00:48.2]} 25.
Rd6 {[%clk 0:00:29.2]} 25... Rfd8 {[%clk 0:00:45.4]} 26. Rfd1 {[%clk 0:00:29.3]}
26... Rxd6 {[%clk 0:00:42.9]} 27. Rxd6 {[%clk 0:00:30.2]} 27... Rc8 {[%clk
0:00:41.7]} 28. Rb6 {[%clk 0:00:29.9]} 28... Rc7 {[%clk 0:00:38.8]} 29. Ne2
{[%clk 0:00:27.8]} 29... Nd7 {[%clk 0:00:34.1]} 30. Rd6 {[%clk 0:00:26.6]} 30...
Kf8 {[%clk 0:00:34.6]} 31. c3 {[%clk 0:00:25.8]} 31... Ke7 {[%clk 0:00:34.6]}
32. Rd2 {[%clk 0:00:25.9]} 32... Nc5 {[%clk 0:00:35.1]} 33. Nd4 {[%clk
0:00:25.9]} 33... e5 {[%clk 0:00:29.7]} 34. Nf3 {[%clk 0:00:25.1]} 34... f6
{[%clk 0:00:28.1]} 35. Bc2 {[%clk 0:00:22.9]} 35... Rd7 {[%clk 0:00:23.8]} 36.
Rxd7+ {[%clk 0:00:22.2]} 36... Kxd7 {[%clk 0:00:24.7]} 37. Kf2 {[%clk
0:00:21.7]} 37... Kd6 {[%clk 0:00:23.2]} 38. Ke3 {[%clk 0:00:21.4]} 38... Bd5
{[%clk 0:00:22]} 39. b3 {[%clk 0:00:20.4]} 39... Ne6 {[%clk 0:00:20.5]} 40. g3
{[%clk 0:00:20.2]} 40... f5 {[%clk 0:00:20.1]} 41. Nd2 {[%clk 0:00:18.3]} 41...
f4+ {[%clk 0:00:19.7]} 42. Kf2 {[%clk 0:00:18.6]} 42... Ng5 {[%clk 0:00:15.8]}
43. h4 {[%clk 0:00:17.4]} 43... Nh3+ {[%clk 0:00:14.6]} 44. Ke2 {[%clk
0:00:16.1]} 44... fxg3 {[%clk 0:00:14.8]} 45. Ne4+ {[%clk 0:00:15.7]} 45... Bxe4
{[%clk 0:00:12.6]} 46. Bxe4 {[%clk 0:00:16.6]} 46... g2 {[%clk 0:00:05.1]} 47.
Bxg2 {[%clk 0:00:15.1]} 47... Nf4+ {[%clk 0:00:05.5]} 48. Kf3 {[%clk 0:00:15.9]}
48... Nxg2 {[%clk 0:00:05.6]} 49. Kxg2 {[%clk 0:00:16.8]} 49... h6 {[%clk
0:00:03.2]} 50. Kf3 {[%clk 0:00:17.1]} 50... g5 {[%clk 0:00:03.4]} 51. hxg5
{[%clk 0:00:17.4]} 51... hxg5 {[%clk 0:00:04.3]} 52. Ke4 {[%clk 0:00:17.5]}
52... g4 {[%clk 0:00:04.4]} 53. Ke3 {[%clk 0:00:17.4]} 53... Kd5 {[%clk
0:00:04.4]} 54. Kd3 {[%clk 0:00:17.7]} 54... g3 {[%clk 0:00:03.9]} 55. Ke3
{[%clk 0:00:18.1]} 55... e4 {[%clk 0:00:04.4]} 56. Ke2 {[%clk 0:00:17.6]} 56...
Ke5 {[%clk 0:00:04.9]} 57. Ke3 {[%clk 0:00:17.8]} 57... Kf5 {[%clk 0:00:05.1]}
58. Ke2 {[%clk 0:00:17.8]} 58... Kf4 {[%clk 0:00:05.7]} 59. c4 {[%clk
0:00:17.7]} 59... bxc4 {[%clk 0:00:05.9]} 60. bxc4 {[%clk 0:00:17.7]} 60... Ke5
{[%clk 0:00:06.3]} 61. c5 {[%clk 0:00:17.8]} 61... Kd5 {[%clk 0:00:06.5]} 0-1

[Event "*** Titled Tuesday Blitz"]
[Site "Chess.com"]
[Date "2020.11.10"]
[Round "1"]
[White "MatyChess1"]
[Black "HrvojeZagreb"]
[Result "1-0"]
[WhiteElo "2582"]
[BlackElo "2266"]
[TimeControl "180+1"]
[EndTime "10:08:12 PST"]
[Termination "MatyChess1 won by checkmate"]

1. e4 {[%clk 0:03:00.6]} 1... e6 {[%clk 0:02:59.9]} 2. d4 {[%clk 0:03:00.3]}
2... d5 {[%clk 0:02:59.8]} 3. Nc3 {[%clk 0:03:01.2]} 3... dxe4 {[%clk
0:03:00.1]} 4. Nxe4 {[%clk 0:03:02.1]} 4... Nd7 {[%clk 0:03:00.3]} 5. g3 {[%clk
0:03:01.7]} 5... Ngf6 {[%clk 0:02:49.4]} 6. Nxf6+ {[%clk 0:03:01.6]} 6... Nxf6
{[%clk 0:02:48.5]} 7. Bg2 {[%clk 0:03:02.5]} 7... Rb8 {[%clk 0:02:48.3]} 8. Nf3
{[%clk 0:02:52.2]} 8... Bd6 {[%clk 0:02:45]} 9. O-O {[%clk 0:02:48.3]} 9... O-O
{[%clk 0:02:42.7]} 10. Ne5 {[%clk 0:02:44]} 10... c5 {[%clk 0:02:32.3]} 11. Nc4
{[%clk 0:02:40.7]} 11... Be7 {[%clk 0:02:27.7]} 12. Bf4 {[%clk 0:02:38.1]} 12...
Ra8 {[%clk 0:02:25.3]} 13. dxc5 {[%clk 0:02:36.5]} 13... Bxc5 {[%clk 0:02:21.6]}
14. Bd6 {[%clk 0:02:04.9]} 14... Bxd6 {[%clk 0:02:17.6]} 15. Qxd6 {[%clk
0:02:05.8]} 15... Qxd6 {[%clk 0:02:10.1]} 16. Nxd6 {[%clk 0:02:06.7]} 16... Rd8
{[%clk 0:02:05.5]} 17. Rfd1 {[%clk 0:02:05.6]} 17... g6 {[%clk 0:01:39.5]} 18.
c4 {[%clk 0:01:55.6]} 18... Kf8 {[%clk 0:01:21.7]} 19. b3 {[%clk 0:01:42.5]}
19... Rb8 {[%clk 0:01:21.1]} 20. c5 {[%clk 0:01:38.5]} 20... Ke7 {[%clk
0:01:18.4]} 21. Rac1 {[%clk 0:01:24]} 21... Ne8 {[%clk 0:01:09]} 22. Nxe8 {[%clk
0:01:03.6]} 22... Rxd1+ {[%clk 0:01:00.5]} 23. Rxd1 {[%clk 0:01:03.2]} 23...
Kxe8 {[%clk 0:01:00.7]} 24. c6 {[%clk 0:00:57.3]} 24... bxc6 {[%clk 0:00:58.3]}
25. Bxc6+ {[%clk 0:00:58.2]} 25... Ke7 {[%clk 0:00:58.5]} 26. f4 {[%clk
0:00:58]} 26... Rb6 {[%clk 0:00:56.9]} 27. Ba4 {[%clk 0:00:54.5]} 27... Rd6
{[%clk 0:00:55.8]} 28. Rc1 {[%clk 0:00:54.4]} 28... Kd8 {[%clk 0:00:49]} 29. Rc2
{[%clk 0:00:54.6]} 29... Bd7 {[%clk 0:00:46.9]} 30. Bxd7 {[%clk 0:00:53.6]}
30... Kxd7 {[%clk 0:00:46.1]} 31. Kf2 {[%clk 0:00:54.5]} 31... f6 {[%clk
0:00:35.7]} 32. Ke3 {[%clk 0:00:53.2]} 32... h5 {[%clk 0:00:35.3]} 33. b4 {[%clk
0:00:51.6]} 33... Rd5 {[%clk 0:00:33.8]} 34. a4 {[%clk 0:00:48.6]} 34... a6
{[%clk 0:00:32.5]} 35. Rd2 {[%clk 0:00:17.6]} 35... Kc6 {[%clk 0:00:31]} 36. Rd4
{[%clk 0:00:12]} 36... Rf5 {[%clk 0:00:18.1]} 37. Rc4+ {[%clk 0:00:09.8]} 37...
Kb6 {[%clk 0:00:17.1]} 38. Re4 {[%clk 0:00:07.6]} 38... e5 {[%clk 0:00:13.3]}
39. fxe5 {[%clk 0:00:08.5]} 39... fxe5 {[%clk 0:00:13.6]} 40. Rc4 {[%clk
0:00:08]} 40... Rg5 {[%clk 0:00:12.4]} 41. Rc5 {[%clk 0:00:05.3]} 41... Rg4
{[%clk 0:00:07.5]} 42. Rxe5 {[%clk 0:00:03.5]} 42... Rxb4 {[%clk 0:00:07.4]} 43.
a5+ {[%clk 0:00:04.4]} 43... Kb7 {[%clk 0:00:04.9]} 44. Re6 {[%clk 0:00:05.3]}
44... Rb5 {[%clk 0:00:04.1]} 45. Rxg6 {[%clk 0:00:05.8]} 45... Rxa5 {[%clk
0:00:04.6]} 46. h3 {[%clk 0:00:06.3]} 46... Ra1 {[%clk 0:00:04.2]} 47. Rh6
{[%clk 0:00:05.9]} 47... Ra5 {[%clk 0:00:03.1]} 48. h4 {[%clk 0:00:05.3]} 48...
Kc7 {[%clk 0:00:03.3]} 49. Kf4 {[%clk 0:00:05.5]} 49... Kd7 {[%clk 0:00:03.7]}
50. g4 {[%clk 0:00:02.8]} 50... hxg4 {[%clk 0:00:04.6]} 51. Kxg4 {[%clk
0:00:03.7]} 51... Ke7 {[%clk 0:00:05.1]} 52. Rh7+ {[%clk 0:00:04.3]} 52... Kf6
{[%clk 0:00:05.3]} 53. Ra7 {[%clk 0:00:05.2]} 53... Kg6 {[%clk 0:00:04.2]} 54.
h5+ {[%clk 0:00:04.8]} 54... Kh6 {[%clk 0:00:04.6]} 55. Rb7 {[%clk 0:00:04.9]}
55... Ra4+ {[%clk 0:00:05]} 56. Kf5 {[%clk 0:00:04.3]} 56... Kxh5 {[%clk
0:00:05.9]} 57. Rh7# {[%clk 0:00:04.3]} 1-0

[Event "*** Titled Tuesday Blitz"]
[Site "Chess.com"]
[Date "2020.11.10"]
[Round "1"]
[White "Fy_Rakotomaharo"]
[Black "Trickov"]
[Result "1-0"]
[WhiteElo "2650"]
[BlackElo "2332"]
[TimeControl "180+1"]
[EndTime "10:08:15 PST"]
[Termination "Fy_Rakotomaharo won on time"]

1. Nf3 {[%clk 0:02:59.8]} 1... d5 {[%clk 0:02:59.1]} 2. b3 {[%clk 0:02:59.7]}
2... c5 {[%clk 0:02:56.4]} 3. e3 {[%clk 0:02:58.5]} 3... Nf6 {[%clk 0:02:54.1]}
4. Bb2 {[%clk 0:02:58]} 4... g6 {[%clk 0:02:52]} 5. Bxf6 {[%clk 0:02:52]} 5...
exf6 {[%clk 0:02:51]} 6. d4 {[%clk 0:02:52]} 6... f5 {[%clk 0:02:48.3]} 7. c3
{[%clk 0:02:49.8]} 7... Bg7 {[%clk 0:02:48]} 8. g3 {[%clk 0:02:44.5]} 8... b6
{[%clk 0:02:45.5]} 9. Nbd2 {[%clk 0:02:42.8]} 9... O-O {[%clk 0:02:44]} 10. Be2
{[%clk 0:02:39.6]} 10... Nd7 {[%clk 0:02:43.8]} 11. O-O {[%clk 0:02:38.4]} 11...
Nf6 {[%clk 0:02:43.8]} 12. b4 {[%clk 0:02:17.6]} 12... Ne4 {[%clk 0:02:40.4]}
13. Qb3 {[%clk 0:02:11.7]} 13... a5 {[%clk 0:02:30.1]} 14. bxc5 {[%clk
0:02:00.1]} 14... bxc5 {[%clk 0:02:29]} 15. a4 {[%clk 0:01:59.3]} 15... Be6
{[%clk 0:02:24.1]} 16. Qc2 {[%clk 0:01:53.5]} 16... Qc7 {[%clk 0:02:17.7]} 17.
Rfc1 {[%clk 0:01:43.6]} 17... Rac8 {[%clk 0:02:12.2]} 18. Ba6 {[%clk 0:01:42.1]}
18... Ra8 {[%clk 0:02:11.3]} 19. Bb5 {[%clk 0:01:36.5]} 19... Rfc8 {[%clk
0:02:11.5]} 20. Qb2 {[%clk 0:01:29.7]} 20... Rab8 {[%clk 0:02:06.8]} 21. Nxe4
{[%clk 0:01:19]} 21... fxe4 {[%clk 0:02:03]} 22. Nd2 {[%clk 0:01:19]} 22... c4
{[%clk 0:01:55.6]} 23. Qc2 {[%clk 0:01:13.3]} 23... Bg4 {[%clk 0:01:37.6]} 24.
Nf1 {[%clk 0:01:04]} 24... Rb6 {[%clk 0:01:28.2]} 25. h4 {[%clk 0:00:57]} 25...
Rcb8 {[%clk 0:01:24.9]} 26. Nh2 {[%clk 0:00:55.6]} 26... Be6 {[%clk 0:01:17.5]}
27. Qd1 {[%clk 0:00:47.8]} 27... Bf8 {[%clk 0:01:13.5]} 28. Ng4 {[%clk
0:00:40.6]} 28... Bd6 {[%clk 0:01:05.7]} 29. Nf6+ {[%clk 0:00:39.2]} 29... Kg7
{[%clk 0:00:53.9]} 30. Ne8+ {[%clk 0:00:38.6]} 30... Rxe8 {[%clk 0:00:53.6]} 31.
Bxe8 {[%clk 0:00:39.5]} 31... Bxg3 {[%clk 0:00:53.4]} 32. Ra2 {[%clk 0:00:31.1]}
32... Bxh4 {[%clk 0:00:45.3]} 33. f4 {[%clk 0:00:31.2]} 33... exf3 {[%clk
0:00:18]} 34. Qxf3 {[%clk 0:00:31.1]} 34... Bg5 {[%clk 0:00:16.7]} 35. Rg2
{[%clk 0:00:28.1]} 35... h6 {[%clk 0:00:15.7]} 36. Bb5 {[%clk 0:00:21.7]} 36...
Qe7 {[%clk 0:00:12.1]} 37. Rf1 {[%clk 0:00:20.5]} 37... Bf5 {[%clk 0:00:10.7]}
38. Re2 {[%clk 0:00:09.6]} 38... Bd3 {[%clk 0:00:10.5]} 39. Rfe1 {[%clk
0:00:09.8]} 39... Bxe2 {[%clk 0:00:09.9]} 40. Rxe2 {[%clk 0:00:10.7]} 40... Qd6
{[%clk 0:00:10.2]} 41. Rf2 {[%clk 0:00:10.4]} 41... f5 {[%clk 0:00:10.2]} 42.
Kg2 {[%clk 0:00:09.3]} 42... Qe6 {[%clk 0:00:10]} 43. Re2 {[%clk 0:00:09]} 43...
Qe4 {[%clk 0:00:08.6]} 44. Qxe4 {[%clk 0:00:09.4]} 44... fxe4 {[%clk 0:00:07.8]}
45. Re1 {[%clk 0:00:09]} 45... Rf6 {[%clk 0:00:06.8]} 46. Bd7 {[%clk 0:00:09.1]}
46... Kf7 {[%clk 0:00:04.9]} 47. Bc8 {[%clk 0:00:09.1]} 47... Ke7 {[%clk
0:00:04.7]} 48. Bb7 {[%clk 0:00:08.6]} 48... Kd6 {[%clk 0:00:04.9]} 49. Rb1
{[%clk 0:00:09.1]} 49... Rf3 {[%clk 0:00:04.7]} 50. Rb6+ {[%clk 0:00:07.2]}
50... Kc7 {[%clk 0:00:04.9]} 51. Rb5 {[%clk 0:00:08.1]} 51... Rxe3 {[%clk
0:00:04]} 52. Bxd5 {[%clk 0:00:08.8]} 52... Rxc3 {[%clk 0:00:03.6]} 53. Bxe4
{[%clk 0:00:09.4]} 53... Rc2+ {[%clk 0:00:03.7]} 54. Bxc2 {[%clk 0:00:09.3]} 1-0

[Event "*** Titled Tuesday Blitz"]
[Site "Chess.com"]
[Date "2020.11.10"]
[Round "1"]
[White "RestartingChess"]
[Black "VladaSviridova"]
[Result "1-0"]
[WhiteElo "2583"]
[BlackElo "2268"]
[TimeControl "180+1"]
[EndTime "10:08:16 PST"]
[Termination "RestartingChess won by resignation"]

1. e4 {[%clk 0:03:00.9]} 1... e6 {[%clk 0:02:59.4]} 2. d4 {[%clk 0:03:00.3]}
2... d5 {[%clk 0:02:59.6]} 3. exd5 {[%clk 0:03:00.8]} 3... exd5 {[%clk
0:02:59.1]} 4. c4 {[%clk 0:03:01.7]} 4... Nf6 {[%clk 0:02:58.5]} 5. Nc3 {[%clk
0:03:02.2]} 5... Bb4 {[%clk 0:02:49.8]} 6. Bd3 {[%clk 0:03:01.8]} 6... O-O
{[%clk 0:02:44.1]} 7. Ne2 {[%clk 0:03:01.9]} 7... dxc4 {[%clk 0:02:40]} 8. Bxc4
{[%clk 0:03:02.8]} 8... Nbd7 {[%clk 0:02:34.8]} 9. O-O {[%clk 0:03:02.4]} 9...
Nb6 {[%clk 0:02:34.5]} 10. Bb3 {[%clk 0:03:03.1]} 10... c6 {[%clk 0:02:30.3]}
11. Bg5 {[%clk 0:03:02.7]} 11... h6 {[%clk 0:02:29.4]} 12. Bh4 {[%clk
0:03:01.9]} 12... Be7 {[%clk 0:02:28.2]} 13. Re1 {[%clk 0:02:56.7]} 13... Bf5
{[%clk 0:02:23.9]} 14. Rc1 {[%clk 0:02:29.2]} 14... Qd7 {[%clk 0:01:51.3]} 15.
Bg3 {[%clk 0:02:20.2]} 15... Rad8 {[%clk 0:01:42.1]} 16. Be5 {[%clk 0:02:19.4]}
16... Ng4 {[%clk 0:01:27.2]} 17. Ng3 {[%clk 0:02:08]} 17... Nxe5 {[%clk
0:01:21]} 18. dxe5 {[%clk 0:02:06.5]} 18... Qxd1 {[%clk 0:01:14.1]} 19. Rcxd1
{[%clk 0:02:06.6]} 19... Be6 {[%clk 0:00:57.7]} 20. Bxe6 {[%clk 0:01:41.2]}
20... fxe6 {[%clk 0:00:56.6]} 21. Nge2 {[%clk 0:01:40.4]} 21... Nd5 {[%clk
0:00:48]} 22. Nd4 {[%clk 0:01:36.3]} 22... Nc7 {[%clk 0:00:33.2]} 23. Ne4 {[%clk
0:01:32]} 23... a6 {[%clk 0:00:22.1]} 24. a3 {[%clk 0:01:31.2]} 24... c5 {[%clk
0:00:21.7]} 25. Nb3 {[%clk 0:01:27.8]} 25... c4 {[%clk 0:00:20.3]} 26. Nbc5
{[%clk 0:01:26.2]} 26... b6 {[%clk 0:00:19.1]} 27. Nd7 {[%clk 0:01:15.6]} 27...
Rf5 {[%clk 0:00:18.7]} 28. Ng3 {[%clk 0:01:09.1]} 28... Rf7 {[%clk 0:00:16]} 29.
Nxb6 {[%clk 0:01:09]} 29... Rxd1 {[%clk 0:00:15.1]} 30. Rxd1 {[%clk 0:01:09.3]}
30... Bc5 {[%clk 0:00:15.7]} 31. Nxc4 {[%clk 0:01:03.3]} 31... Bxf2+ {[%clk
0:00:15.4]} 32. Kh1 {[%clk 0:01:03.5]} 32... Bxg3 {[%clk 0:00:15.3]} 33. hxg3
{[%clk 0:01:04.4]} 33... Nd5 {[%clk 0:00:15.5]} 34. Kg1 {[%clk 0:01:01.2]} 34...
Rc7 {[%clk 0:00:14.3]} 35. Rc1 {[%clk 0:00:52.5]} 35... Rc5 {[%clk 0:00:13.4]}
36. b4 {[%clk 0:00:43.6]} 36... Rc6 {[%clk 0:00:13.4]} 37. Rc2 {[%clk
0:00:44.1]} 37... g5 {[%clk 0:00:11.7]} 38. Kf2 {[%clk 0:00:37.9]} 38... Kg7
{[%clk 0:00:11.9]} 39. Ne3 {[%clk 0:00:33.4]} 39... Rxc2+ {[%clk 0:00:11.1]} 40.
Nxc2 {[%clk 0:00:34.3]} 40... Kg6 {[%clk 0:00:09.9]} 41. Nd4 {[%clk 0:00:34]}
41... Nc7 {[%clk 0:00:08.8]} 42. a4 {[%clk 0:00:33.8]} 42... h5 {[%clk
0:00:08.8]} 43. b5 {[%clk 0:00:34.1]} 43... axb5 {[%clk 0:00:08.7]} 44. axb5
{[%clk 0:00:35]} 44... Nd5 {[%clk 0:00:08.8]} 45. Nxe6 {[%clk 0:00:20.4]} 45...
Kf5 {[%clk 0:00:08.4]} 46. Ng7+ {[%clk 0:00:21]} 46... Kxe5 {[%clk 0:00:07.8]}
47. Nxh5 {[%clk 0:00:21.1]} 47... Nb6 {[%clk 0:00:07.3]} 48. Kf3 {[%clk
0:00:20.6]} 48... Kf5 {[%clk 0:00:07.5]} 49. Ng7+ {[%clk 0:00:20.9]} 49... Kf6
{[%clk 0:00:07.5]} 50. Ne8+ {[%clk 0:00:21]} 50... Ke7 {[%clk 0:00:07.7]} 51.
Nc7 {[%clk 0:00:21.2]} 51... Kd6 {[%clk 0:00:07.9]} 52. Na6 {[%clk 0:00:20.8]}
52... Nd5 {[%clk 0:00:07.1]} 53. Kg4 {[%clk 0:00:20]} 53... Nf6+ {[%clk
0:00:06.8]} 54. Kxg5 {[%clk 0:00:20.3]} 54... Ne4+ {[%clk 0:00:07.3]} 55. Kf4
{[%clk 0:00:21]} 55... Nf6 {[%clk 0:00:07.2]} 56. g4 {[%clk 0:00:21.4]} 56...
Nd5+ {[%clk 0:00:07.6]} 57. Kf5 {[%clk 0:00:21.5]} 57... Nc3 {[%clk 0:00:07.4]}
58. g5 {[%clk 0:00:19.8]} 58... Nxb5 {[%clk 0:00:07.4]} 59. Kf6 {[%clk
0:00:20.5]} 59... Nc3 {[%clk 0:00:06.4]} 60. g6 {[%clk 0:00:20.6]} 60... Nd5+
{[%clk 0:00:06.6]} 61. Kf7 {[%clk 0:00:20.9]} 61... Ne3 {[%clk 0:00:06.2]} 62.
g7 {[%clk 0:00:20.9]} 62... Nf5 {[%clk 0:00:06.4]} 63. g4 {[%clk 0:00:19]} 63...
Nh6+ {[%clk 0:00:04.5]} 64. Kf8 {[%clk 0:00:19]} 64... Ke5 {[%clk 0:00:03.2]}
65. g5 {[%clk 0:00:19.6]} 65... Nf5 {[%clk 0:00:03]} 66. g8=Q {[%clk 0:00:19.8]}
1-0